bitfinex-derivatives/quotes_ETHF0:USTF0_20250403
["timestamp","ask_amount","ask_price","bid_price","bid_amount"]
[1743640330037,1.09958,1819.2,1819.1,0.00824969]
[1743640331438,3.2078,1819.3,1819.2,1.09958]
[1743640331631,3.2078,1819.3,1819.2,2.53968]
[1743640331829,1.10768234,1819.4,1819.2,2.53968]
[1743640332234,0.00817234,1819.4,1819.3,1.09952]
[1743640332935,0.00817234,1819.4,1819.3,5.38352]
[1743640333236,3.2078,1819.7,1819.6,1.09934]
[1743640334032,3.2078,1820.0,1819.9,1.09915]
[1743640334233,5.74762,1820.2,1820.0,1.12611426]
[1743640334438,1.09903,1820.1,1820.0,1.12611426]
[1743640334744,5.74761,1820.2,1820.1,0.02706426]
[1743640335236,60.50581,1820.7,1820.1,0.02706426]
[1743640335237,1.0984,1821.2,1820.3,5.49458]
[1743640335536,3.2078,1821.4,1821.3,1.09831]
[1743640335734,0.7412,1821.5,1821.4,1.09825]
[1743640336036,0.7412,1821.5,1821.1,2.74603]
[1743640336037,0.7412,1821.5,1821.3,1.09826]
[1743640336540,3.21740204,1821.6,1821.5,1.09819]
[1743640336939,0.00960204,1821.6,1821.5,1.09819]
[1743640337241,3.2078,1821.9,1821.7,1.09803]
[1743640337442,3.2078,1821.9,1821.5,1.474]
[1743640337737,3.2078,1822.2,1822.0,1.09788]
[1743640337942,3.2078,1822.2,1821.9,1.0979]
[1743640338128,3.2078,1822.2,1821.7,1.4349]
[1743640338129,3.2078,1822.2,1821.6,2.74533]
[1743640338335,3.2078,1822.0,1821.6,1.09813]
[1743640338542,1.09797,1821.9,1821.5,2.54131969]
[1743640338736,1.4785,1821.9,1821.5,0.00824969]
[1743640338930,1.4785,1821.9,1821.8,1.09801]
[1743640339538,3.2078,1822.2,1822.1,1.09779]
[1743640339739,1.4785,1822.2,1822.1,1.09779]
[1743640339939,3.2078,1822.4,1822.3,1.09771]
[1743640340440,3.2078,1823.2,1823.1,1.09722]
[1743640340937,3.2078,1823.2,1822.6,3.2078]
[1743640340938,9.9888,1823.2,1822.6,3.2078]
[1743640341129,3.2078,1823.0,1822.6,3.2078]
[1743640341330,5.6864,1822.9,1822.3,1.4488]
[1743640341540,3.2078,1822.6,1822.5,1.09759]
[1743640342331,3.2078,1823.0,1822.4,0.00822683]
[1743640342539,4.30524,1822.8,1822.4,0.00822683]
[1743640342840,1.4054,1822.7,1822.6,1.09753]
[1743640343039,1.4054,1822.7,1821.6,3.2078]
[1743640343040,10.5772,1822.7,1821.6,3.2078]
[1743640343239,3.2078,1822.1,1821.3,3.2078]
[1743640343439,1.09798,1821.9,1821.6,1.0981]
[1743640343736,2.50343,1821.8,1821.4,1.4488]
[1743640343941,2.50343,1821.8,1821.5,1.09817]
[1743640343942,2.50341,1821.8,1821.5,1.09817]
[1743640344330,1.41362683,1821.8,1821.5,1.10639683]
[1743640344538,2.51163683,1821.8,1821.5,1.10639683]
[1743640344846,1.09808,1821.7,1821.5,1.10640683]
[1743640345147,1.3987,1821.6,1821.5,1.10641683]
[1743640346746,1.3987,1821.6,1821.5,4.31421683]
[1743640346949,1.3987,1821.6,1821.5,1.10641683]
[1743640348649,2.49683,1821.6,1821.5,1.10641683]
[1743640349139,1.3987,1821.6,1821.5,1.10641683]
[1743640350044,2.49683,1821.6,1821.5,1.10641683]
[1743640350545,1.3987,1821.6,1821.5,1.10641683]
[1743640350745,2.49683,1821.6,1821.5,1.10641683]
[1743640351140,2.49683,1821.6,1821.5,0.00822683]
[1743640351346,0.00822683,1821.8,1821.7,1.09807]
[1743640351542,2.56043683,1821.8,1821.5,3.21602683]
[1743640351740,1.09813,1821.6,1821.5,0.00822683]
[1743640351940,1.46242683,1821.8,1821.7,1.09807]
[1743640352150,2.56043683,1821.8,1821.7,1.09807]
[1743640352647,1.09807,1821.7,1821.6,1.09808]
[1743640352948,1.09813,1821.6,1821.5,2.58529683]
[1743640353245,1.09813,1821.6,1821.5,0.00822683]
[1743640353246,2.60253,1821.6,1821.5,0.00822683]
[1743640353438,1.09831,1821.3,1821.2,5.824]
[1743640353641,5.95336,1821.5,1821.1,1.09837]
[1743640353945,2.60281,1821.2,1821.1,1.09843]
[1743640354146,4.323,1821.4,1821.0,1.4909]
[1743640354335,1.09839,1821.2,1821.1,1.0984]
[1743640354539,1.09843,1821.1,1821.0,2.58935]
[1743640354741,1.09843,1821.1,1821.0,0.00822683]
[1743640354939,8.62623,1821.1,1821.0,0.00822683]
[1743640355139,5.41843,1821.1,1821.0,0.00822683]
[1743640355547,5.41843,1821.1,1821.0,1.10671683]
[1743640355742,5.41843,1821.1,1821.0,0.00822683]
[1743640356548,8.62623,1821.1,1821.0,0.00822683]
[1743640356747,1.09876,1820.6,1820.5,1.09875]
[1743640356945,1.09872,1820.7,1820.6,1.09871]
[1743640357145,3.2078,1820.9,1820.5,2.74698]
[1743640357339,4.30635,1820.9,1820.8,1.09861]
[1743640357644,3.2078,1820.9,1820.6,1.4399]
[1743640357851,4.30639,1820.9,1820.8,1.09861]
[1743640358151,1.09861,1820.8,1820.7,0.00822683]
[1743640358449,4.322,1820.8,1820.7,1.10689683]
[1743640358651,1.50512683,1821.0,1820.9,1.09855]
[1743640358848,0.00822683,1821.0,1820.9,1.09855]
[1743640359550,1.10671683,1821.0,1820.9,1.09855]
[1743640359751,1.09855,1820.9,1820.8,2.53848]
[1743640359942,1.09855,1820.9,1820.8,1.4399]
[1743640360138,1.09861,1820.8,1820.7,0.00822683]
[1743640360542,1.09861,1820.8,1820.7,1.10689683]
[1743640361149,1.3964,1820.9,1820.8,1.09861]
[1743640361347,0.00822683,1821.0,1820.9,1.09855]
[1743640362044,1.09801,1821.8,1821.7,1.09802]
[1743640362246,1.09817,1821.6,1821.3,3.2078]
[1743640362444,10.27554,1822.0,1821.4,1.461]
[1743640362445,1.09819,1821.5,1821.4,1.461]
[1743640362651,2.51549,1821.5,1821.4,1.461]
[1743640362844,1.4173,1821.5,1821.2,1.09835]
[1743640363051,0.00822683,1821.6,1821.5,1.09819]
[1743640363551,1.09819,1821.5,1821.4,1.461]
[1743640363949,2.51549,1821.5,1821.4,2.55925]
[1743640364144,2.51549,1821.5,1821.4,1.461]
[1743640364549,2.51549,1821.5,1821.4,2.55925]
[1743640364747,2.51549,1821.5,1821.4,1.461]
[1743640364944,2.51549,1821.5,1821.4,2.55925]
[1743640365150,1.09825,1821.4,1821.3,0.00822683]
[1743640365448,0.00822683,1821.6,1821.3,0.00822683]
[1743640365750,0.00822683,1821.6,1821.3,2.54131683]
[1743640365751,1.09825,1821.4,1821.3,2.54131683]
[1743640365953,0.00822683,1821.6,1821.3,2.54131683]
[1743640365954,1.45582683,1821.6,1821.3,1.44302683]
[1743640366150,1.09819,1821.5,1821.4,1.4348]
[1743640367254,4.30599,1821.5,1821.4,1.4348]
[1743640367552,1.09825,1821.4,1821.3,0.00822683]
[1743640367859,2.54585,1821.4,1821.3,0.00822683]
[1743640368452,6.86185,1821.4,1821.3,0.00822683]
[1743640369767,2.54585,1821.4,1821.3,0.00822683]
[1743640369960,6.85685,1821.4,1821.3,0.00822683]
[1743640371555,1.09825,1821.4,1821.3,0.00822683]
[1743640372058,1.09825,1821.4,1821.3,1.10653683]
[1743640372260,1.09825,1821.4,1821.3,0.00822683]
[1743640372758,2.51645,1821.4,1821.3,0.00822683]
[1743640374652,2.51645,1821.4,1820.6,7.04681]
[1743640374653,9.40968,1821.4,1820.6,3.2078]
[1743640374856,1.09885,1820.4,1820.3,4.6705]
[1743640375055,1.09885,1820.4,1820.3,1.4627]
[1743640375359,1.09885,1820.4,1820.3,0.7106]
[1743640375557,4.30665,1820.4,1820.3,0.7106]
[1743640376263,1.09891,1820.3,1820.2,0.00822683]
[1743640377466,2.48711,1820.3,1820.2,0.00822683]
[1743640378163,1.09891,1820.3,1820.2,0.00822683]
[1743640378956,1.09891,1820.3,1820.2,1.51262683]
[1743640380568,1.09891,1820.3,1820.2,0.00822683]
[1743640380863,4.98591,1820.3,1820.2,6.83e-06]
[1743640381063,5.74531,1820.3,1820.2,6.83e-06]
[1743640381366,5.74531,1820.3,1819.6,1.3736]
[1743640381367,1.09928,1819.7,1819.6,1.3736]
[1743640381565,1.09928,1819.7,1819.6,1.34653574]
[1743640381761,5.39026,1819.8,1819.7,1.09928]
[1743640381965,1.09928,1819.7,1819.6,2.44583574]
[1743640382168,2.748,1819.9,1819.6,1.34653574]
[1743640382366,1.09928,1819.7,1819.6,1.34653574]
[1743640382563,1.09928,1819.7,1819.6,1.35476257]
[1743640382764,4.30708,1819.7,1819.6,1.35476257]
[1743640383974,8.59108,1819.7,1819.6,0.00822683]
[1743640384460,1.09952,1819.3,1819.2,1.3908]
[1743640384657,10.2385,1819.4,1818.8,3.2078]
[1743640384865,7.4898,1819.4,1819.1,1.09959]
[1743640385067,1.09958,1819.2,1819.1,1.09959]
[1743640385663,1.09964,1819.1,1819.0,1.40786079]
[1743640385967,1.09963,1819.2,1819.1,1.09963]
[1743640386172,1.10778683,1819.3,1819.2,1.09958]
[1743640386565,1.10778683,1819.3,1819.0,1.40786079]
[1743640386566,1.0996,1819.2,1819.1,1.0996]
[1743640386965,0.00822683,1819.3,1819.0,1.40786079]
[1743640387167,1.09964,1819.1,1819.0,2.50751079]
[1743640387367,1.09962,1819.2,1819.1,1.09961]
[1743640388674,0.00822683,1819.3,1819.2,1.09958]
[1743640389374,0.00822683,1819.3,1819.2,1.4534]
[1743640389375,1.10774683,1819.3,1819.2,1.4534]
[1743640389670,0.00822683,1819.3,1819.2,2.55298]
[1743640389973,7.4888,1819.6,1819.2,2.55298]
[1743640389974,1.09937,1819.6,1819.5,1.09937]
[1743640390176,1.09932,1819.7,1819.6,1.09932]
[1743640390377,4.30706,1819.8,1819.7,1.09928]
[1743640390576,4.30701,1819.8,1819.7,1.09928]
[1743640390778,1.09928,1819.7,1819.6,1.4321]
[1743640390969,1.09934,1819.6,1819.5,4.30715]
[1743640391168,5.73764,1819.8,1819.7,1.09928]
[1743640391378,4.30704,1819.8,1819.7,1.09928]
[1743640392076,0.00822683,1819.9,1819.8,1.09921]
[1743640392372,1.09895,1820.3,1820.2,1.09895]
[1743640392571,1.09902,1820.2,1820.1,1.099]
[1743640392774,1.09902,1820.2,1819.9,3.34562]
[1743640392775,1.09909,1820.0,1819.9,3.34562]
[1743640393086,1.09909,1820.0,1819.9,5.4543]
[1743640393273,1.09909,1820.0,1819.9,1.5028]
[1743640394177,1.09909,1820.0,1819.9,2.60195]
[1743640394371,1.10728683,1820.1,1820.0,1.09909]
[1743640394567,0.00822683,1820.1,1820.0,2.60189]
[1743640396972,0.00822683,1820.1,1820.0,5.80969]
[1743640397573,0.00822683,1820.1,1820.0,2.60189]
[1743640398773,0.00822683,1820.1,1820.0,5.80969]
[1743640399181,5.38083,1820.5,1820.4,1.09885]
[1743640399680,1.09883,1820.5,1820.4,1.09885]
[1743640400179,4.31479683,1820.6,1820.5,1.09879]
[1743640400385,0.00822683,1820.6,1820.5,1.09879]
[1743640400571,1.10695683,1820.6,1820.5,1.09879]
[1743640401882,0.00822683,1820.6,1820.5,1.09879]
[1743640402081,0.00822683,1820.6,1820.5,4.30659]
[1743640402682,0.00822683,1820.6,1820.5,6.42619]
[1743640403072,1.10695683,1820.6,1820.5,3.21839]
[1743640403582,1.10695683,1820.6,1820.5,2.1196]
[1743640403890,1.10695683,1820.6,1820.5,1.3864]
[1743640404077,1.10695683,1820.6,1820.3,5.69309]
[1743640404078,1.09885,1820.4,1820.3,5.69309]
[1743640404483,1.09885,1820.4,1820.3,1.3864]
[1743640404878,1.09885,1820.4,1820.3,2.48531]
[1743640405083,1.09885,1820.4,1820.3,1.3864]
[1743640406190,1.09885,1820.4,1820.3,2.48531]
[1743640406391,1.09885,1820.4,1820.3,1.3864]
[1743640406886,1.09897,1820.2,1820.1,1.7893]
[1743640407081,1.09897,1820.2,1820.1,3.2437]
[1743640408788,1.10697683,1820.6,1820.5,1.09879]
[1743640408984,1.10697683,1820.6,1820.4,1.09883]
[1743640408985,1.09884,1820.5,1820.4,1.09883]
[1743640409185,1.09884,1820.5,1820.2,4.2193]
[1743640409186,1.09891,1820.3,1820.2,1.472]
[1743640409592,1.09903,1820.1,1820.0,1.83324]
[1743640409787,5.7584,1820.5,1820.0,3.48191]
[1743640409988,1.09892,1820.4,1820.3,1.09888]
[1743640410590,1.09892,1820.4,1820.0,3.48191]
[1743640410591,1.09895,1820.3,1820.2,1.09896]
[1743640412703,1.09897,1820.2,1820.1,2.59289]
[1743640412902,8.40982,1820.5,1820.2,1.09892]
[1743640412903,1.09896,1820.3,1820.2,1.09892]
[1743640413202,8.40982,1820.5,1820.3,1.09885]
[1743640413203,1.09889,1820.4,1820.3,1.09885]
[1743640413400,5.95494,1820.4,1819.8,0.00822683]
[1743640413596,1.09915,1819.9,1819.8,1.50212683]
[1743640413795,1.09915,1819.9,1819.8,2.57427257]
[1743640413995,1.09915,1819.9,1819.8,1.47506257]
[1743640414502,1.09915,1819.9,1819.8,2.57427257]
[1743640414893,1.09915,1819.9,1819.8,1.47506257]
[1743640415297,1.09915,1819.9,1819.8,2.57427257]
[1743640415499,1.09915,1819.9,1819.8,1.47506257]
[1743640416098,1.09921,1819.8,1819.7,0.00822683]
[1743640416298,2.54841,1819.8,1819.7,0.00822683]
[1743640416499,7.4878,1820.1,1819.7,0.00822683]
[1743640416699,1.09918,1819.9,1819.8,1.09917]
[1743640416904,2.54835,1820.0,1819.9,1.09915]
[1743640417102,1.09919,1819.9,1819.8,1.09917]
[1743640417302,1.09921,1819.8,1819.7,2.52665683]
[1743640417603,1.09921,1819.8,1819.7,1.42742683]
[1743640417805,5.37921,1819.8,1819.7,0.00822683]
[1743640418104,5.37921,1819.8,1819.7,1.10750683]
[1743640418299,1.09921,1819.8,1819.7,1.10750683]
[1743640418504,5.37912,1820.0,1819.9,1.09915]
[1743640418707,5.35205574,1820.0,1819.9,1.09915]
[1743640419114,4.25293574,1820.0,1819.8,2.51837]
[1743640419412,1.09915,1819.9,1819.8,2.49130574]
[1743640419706,2.58225,1819.9,1819.8,2.49130574]
[1743640420711,7.4878,1820.1,1820.0,1.09909]
[1743640420902,3.18073574,1820.1,1820.0,1.09909]
[1743640421106,6.77079,1820.1,1820.0,1.09909]
[1743640421409,1.09914,1820.0,1819.9,1.09911]
[1743640421611,2.49084,1820.0,1819.9,1.09911]
[1743640421812,1.3917,1820.0,1819.9,1.09911]
[1743640422014,2.49079,1820.0,1819.9,1.09911]
[1743640422417,5.37903,1820.1,1820.0,1.09909]
[1743640422913,6.75763,1820.1,1820.0,1.09909]
[1743640424520,5.6586,1820.1,1820.0,1.09909]
[1743640427210,3.2078,1820.4,1819.8,2.2071]
[1743640427420,2.54716,1820.4,1820.3,1.09891]
[1743640427617,5.7283,1820.4,1820.3,1.09891]
[1743640428114,1.09883,1820.5,1820.4,1.09885]
[1743640428316,5.76309683,1820.6,1820.5,1.09879]
[1743640428509,8.94432683,1820.6,1820.5,1.09879]
[1743640428713,6.83525683,1820.6,1820.5,1.09879]
[1743640429315,5.73652683,1820.6,1820.5,1.09879]
[1743640429721,6.83525683,1820.6,1820.5,1.09879]
[1743640430114,6.83425683,1820.6,1820.5,1.09879]
[1743640430515,5.73552683,1820.6,1820.5,1.09879]
[1743640431812,4.28722683,1820.6,1820.5,1.09879]
[1743640432010,5.38595683,1820.6,1820.5,1.09879]
[1743640432217,4.28722683,1820.6,1820.5,1.09879]
[1743640432417,1.09885,1820.4,1820.3,1.80525]
[1743640432727,1.09891,1820.3,1820.2,1.09892]
[1743640432921,5.7859,1820.3,1820.2,1.09892]
[1743640433111,4.279,1820.3,1820.2,1.09892]
[1743640434112,4.279,1820.5,1820.2,3.2078]
[1743640434314,1.10696683,1820.6,1820.5,1.09879]
[1743640434717,0.00822683,1820.6,1820.5,1.09879]
[1743640436122,0.00822683,1820.6,1820.5,2.48909]
[1743640439620,1.46652683,1820.6,1820.5,2.48909]
[1743640440727,0.00822683,1820.6,1820.5,2.48909]
[1743640441128,1.39422683,1820.6,1820.5,2.48909]
[1743640442027,4.60202683,1820.6,1820.3,3.47013]
[1743640442221,1.09883,1820.5,1820.4,1.0988]
[1743640442427,2.48483,1820.5,1820.4,1.0988]
[1743640442822,1.09887,1820.4,1820.3,1.09889]
[1743640443023,1.386,1820.4,1820.3,1.09889]
[1743640443433,0.00822683,1820.6,1820.4,1.09883]
[1743640443729,1.09889,1820.4,1820.3,1.09888]
[1743640444630,1.0992,1819.9,1819.7,0.00822683]
[1743640444930,2.74744,1820.2,1819.8,1.47623574]
[1743640444931,1.09911,1820.0,1819.8,1.47623574]
[1743640445132,1.09911,1820.0,1819.9,1.09915]
[1743640445330,1.07204574,1820.0,1819.9,1.09915]
[1743640445732,5.95565,1820.0,1819.7,0.00822683]
[1743640445931,5.95565,1820.0,1819.5,3.9557]
[1743640445932,1.11811743,1819.7,1819.5,0.7479]
[1743640446127,0.01883743,1819.7,1819.6,1.09934]
[1743640446431,6.84827,1819.9,1819.8,1.08037257]
[1743640446827,1.4721,1819.9,1819.5,3.9557]
[1743640447133,4.30701,1819.8,1819.7,0.00822683]
[1743640447334,5.37621,1819.8,1819.7,0.00822683]
[1743640447637,6.75151,1819.8,1819.7,0.00822683]
[1743640448130,11.60818,1819.8,1819.4,1.4295]
[1743640448334,1.0994,1819.5,1819.4,2.52892]
[1743640448541,1.09946,1819.4,1819.3,0.6961]
[1743640448832,2.47476,1819.4,1819.3,0.6961]
[1743640449028,2.47476,1819.4,1819.3,1.79562]
[1743640449332,1.09946,1819.4,1819.3,0.6961]
[1743640449529,1.09952,1819.3,1819.2,1.43506079]
[1743640449729,4.30732,1819.3,1819.2,0.00556079]
[1743640450330,5.79652,1819.3,1819.2,0.00556079]
[1743640450727,1.09951,1819.4,1819.2,0.00556079]
[1743640451032,1.09952,1819.3,1819.2,1.10509079]
[1743640451634,1.09948,1819.4,1819.3,1.09949]
[1743640451836,1.09948,1819.4,1819.3,2.51489]
[1743640452027,5.77442683,1819.5,1819.4,1.09946]
[1743640452028,0.00822683,1819.5,1819.4,1.09946]
[1743640452529,0.00822683,1819.5,1819.4,2.51486]
[1743640452735,3.2078,1820.0,1819.8,1.09917]
[1743640452927,1.09917,1819.9,1819.8,1.09917]
[1743640453128,1.09923,1819.8,1819.7,1.09923]
[1743640453328,5.95555,1820.0,1819.4,10.23444]
[1743640453631,1.09929,1819.7,1819.6,1.09929]
[1743640453831,1.09946,1819.5,1819.4,1.09943]
[1743640454135,10.234,1819.7,1819.3,0.7584]
[1743640454136,1.09946,1819.4,1819.3,1.85789]
[1743640454436,1.09942,1819.5,1819.4,1.09941]
[1743640454638,4.278,1819.7,1819.3,3.50719]
[1743640454839,1.09934,1819.7,1819.6,1.09934]
[1743640455242,2.59485,1819.8,1819.7,1.09928]
[1743640455536,1.0993,1819.7,1819.6,1.09929]
[1743640455741,1.09926,1819.8,1819.7,1.09924]
[1743640456234,4.28622683,1819.9,1819.8,1.09921]
[1743640456235,0.00822683,1819.9,1819.8,1.09921]
[1743640456435,0.00822683,1819.9,1819.8,1.84711]
[1743640456736,1.10737683,1819.9,1819.8,0.7479]
[1743640456945,0.00822683,1819.9,1819.8,1.84711]
[1743640457236,1.10737683,1819.9,1819.8,1.84711]
[1743640457434,0.00822683,1819.9,1819.8,1.84711]
[1743640458034,1.10737683,1819.9,1819.8,0.7479]
[1743640458240,1.10737683,1819.9,1819.8,1.84711]
[1743640458739,0.00822683,1819.9,1819.8,1.84711]
[1743640459135,1.10737683,1819.9,1819.8,1.84711]
[1743640459543,0.00822683,1819.9,1819.8,1.84711]
[1743640459842,1.10737683,1819.9,1819.8,1.84711]
[1743640460043,2.49297683,1819.9,1819.8,0.7479]
[1743640460344,1.09952,1819.3,1819.2,0.00556079]
[1743640461146,1.09976,1818.9,1818.8,0.7421]
[1743640461337,1.09973,1819.0,1818.9,1.09975]
[1743640461843,1.3856,1819.1,1818.8,1.84187]
[1743640462041,1.09976,1818.9,1818.8,0.7421]
[1743640462343,1.09976,1818.9,1818.8,1.84192]
[1743640462939,1.3856,1819.1,1818.8,0.7421]
[1743640463238,1.09976,1818.9,1818.8,1.84192]
[1743640463439,1.09973,1819.0,1818.9,1.09974]
[1743640463736,1.09982,1818.8,1818.7,0.00822682]
[1743640464039,1.10003,1818.5,1818.2,4.30793]
[1743640464440,1.5225,1818.7,1818.2,3.2078]
[1743640464743,2.7493,1819.0,1818.8,1.09979]
[1743640464744,8.58552,1819.0,1818.8,1.09979]
[1743640464940,4.30752,1819.0,1818.6,3.2078]
[1743640465142,1.09979,1818.9,1818.7,1.09984]
[1743640465339,1.09988,1818.7,1818.6,1.4342]
[1743640465535,2.54226,1818.8,1818.6,2.53414]
[1743640465741,1.09988,1818.7,1818.6,2.53414]
[1743640465940,1.4424,1818.8,1818.6,2.53414]
[1743640466140,1.09988,1818.7,1818.6,2.53414]
[1743640466336,1.09986,1818.8,1818.7,1.09988]
[1743640466543,4.278,1819.0,1818.6,4.642]
[1743640466742,0.00822683,1819.1,1818.8,1.0998]
[1743640466943,1.09978,1818.9,1818.8,1.0998]
[1743640467345,1.09988,1818.7,1818.6,1.4342]
[1743640467648,1.09988,1818.7,1818.6,2.53414]
[1743640467852,1.09988,1818.7,1818.6,0.7141]
[1743640468353,1.10001,1818.5,1818.3,0.7322]
[1743640468646,1.09997,1818.6,1818.5,1.1]
[1743640468850,1.09992,1818.7,1818.6,1.09994]
[1743640469050,1.09986,1818.8,1818.7,1.09988]
[1743640469251,1.09982,1818.8,1818.7,1.09984]
[1743640469451,1.09979,1818.9,1818.8,1.09978]
[1743640469647,1.09982,1818.8,1818.7,1.09983]
[1743640469852,1.09984,1818.8,1818.7,1.09986]
[1743640470151,1.0998,1818.9,1818.6,3.2078]
[1743640470350,0.00822683,1819.1,1819.0,1.0997]
[1743640470545,1.10788683,1819.1,1819.0,1.0997]
[1743640470950,0.00822683,1819.1,1819.0,1.0997]
[1743640471146,0.00822683,1819.1,1819.0,4.3075]
[1743640472347,0.00822683,1819.1,1819.0,10.1315]
[1743640472553,3.2078,1819.7,1819.3,1.0995]
[1743640472749,3.2078,1819.7,1819.2,1.09954]
[1743640472750,2.74837,1819.6,1819.2,1.09954]
[1743640472946,1.09948,1819.4,1819.3,1.4943]
[1743640473250,1.09958,1819.2,1819.1,0.688]
[1743640473847,1.09958,1819.2,1819.1,1.78764]
[1743640474046,1.09958,1819.2,1819.1,0.688]
[1743640474557,1.09964,1819.1,1819.0,0.00822683]
[1743640474743,2.49684,1819.1,1819.0,0.00822683]
[1743640475748,1.09964,1819.1,1819.0,0.00822683]
[1743640475953,2.49682,1819.2,1819.0,2.60282683]
[1743640476153,1.3972,1819.2,1819.0,1.50312683]
[1743640476345,1.3972,1819.2,1819.1,1.09964]
[1743640476551,2.49678,1819.2,1819.0,2.60277683]
[1743640476754,0.00822683,1819.3,1819.2,1.09958]
[1743640477354,1.10774683,1819.3,1819.0,1.50312683]
[1743640477554,5.71274683,1819.3,1819.0,1.50312683]
[1743640477754,5.71274683,1819.3,1819.2,1.09958]
[1743640477952,1.0996,1819.2,1819.1,1.09962]
[1743640478348,1.09964,1819.1,1819.0,2.60277683]
[1743640478558,1.09964,1819.1,1819.0,1.50312683]
[1743640478753,1.09964,1819.1,1819.0,0.00822683]
[1743640478754,4.30744,1819.1,1819.0,0.00822683]
[1743640479954,4.30744,1819.1,1818.6,0.7506]
[1743640479955,1.09988,1818.7,1818.6,1.85051]
[1743640480150,1.09988,1818.7,1818.6,2.1268]
[1743640480551,2.52158,1818.7,1818.6,2.1268]
[1743640480744,2.52158,1818.7,1818.6,3.22674]
[1743640480945,2.52158,1818.7,1818.6,2.1268]
[1743640481658,2.52158,1818.7,1818.4,0.7127]
[1743640481659,1.1,1818.5,1818.4,0.7127]
[1743640481859,1.1,1818.5,1818.4,3.22776]
[1743640482051,1.09998,1818.6,1818.5,1.09997]
[1743640482257,2.52162,1818.7,1818.6,1.09994]
[1743640482659,1.09994,1818.6,1818.5,2.51498]
[1743640483764,4.30765,1818.8,1818.7,1.09988]
[1743640483948,1.0999,1818.7,1818.6,1.0999]
[1743640484153,8.9886,1819.0,1818.5,4.165]
[1743640484355,2.60261,1818.9,1818.8,1.0998]
[1743640484962,1.09984,1818.8,1818.7,1.09983]
[1743640485160,1.09991,1818.7,1818.6,1.0999]
[1743640485354,1.09986,1818.8,1818.7,1.09985]
[1743640486857,1.0998,1818.9,1818.8,1.09977]
[1743640487258,1.09993,1818.7,1818.6,1.09991]
[1743640487766,1.09994,1818.7,1818.6,1.0999]
[1743640488569,1.09986,1818.8,1818.7,1.09986]
[1743640488865,1.09981,1818.9,1818.8,1.09981]
[1743640489075,1.09983,1818.8,1818.7,1.09983]
[1743640490067,1.0998,1818.9,1818.8,1.09981]
[1743640491067,1.4552,1819.1,1818.5,5.95781]
[1743640491068,1.09983,1818.8,1818.7,1.09984]
[1743640491661,1.09981,1818.9,1818.8,1.09982]
[1743640491860,1.09982,1818.8,1818.7,1.09984]
[1743640492064,4.20431,1819.1,1818.5,5.95781]
[1743640492462,1.09983,1818.8,1818.7,1.09984]
[1743640493666,2.74926,1819.0,1818.5,3.2078]
[1743640493866,1.10006,1818.4,1818.3,3.9378]
[1743640494067,1.10006,1818.4,1818.3,0.73]
[1743640494267,1.10006,1818.4,1817.8,1.10041]
[1743640494268,1.10035,1818.0,1817.8,1.10041]
[1743640494475,1.10035,1818.0,1817.8,1.78821]
[1743640494666,1.10036,1817.9,1817.8,0.6878]
[1743640495267,0.00824992,1818.1,1817.6,0.6945]
[1743640495268,1.10048,1817.7,1817.6,0.6945]
[1743640495872,1.10048,1817.7,1817.5,5.06886]
[1743640496771,1.10048,1817.7,1817.5,1.86106]
[1743640496968,1.10055,1817.6,1817.5,0.7605]
[1743640497166,1.5022,1817.8,1817.5,1.86111]
[1743640497569,1.10055,1817.6,1817.5,0.7605]
[1743640497769,1.10055,1817.6,1817.1,2.752]
[1743640497770,7.4848,1817.6,1817.0,1.10088]
[1743640497975,7.4848,1817.6,1817.0,0.6927]
[1743640497976,1.10085,1817.1,1817.0,0.6927]
[1743640500476,1.3794,1817.2,1817.0,0.6927]
[1743640500776,3.49608,1817.5,1817.0,0.6927]
[1743640500777,3.9523,1817.5,1817.2,1.10079]
[1743640500981,3.2078,1817.5,1817.3,1.10067]
[1743640501172,1.10061,1817.5,1817.3,1.1007]
[1743640501373,1.10057,1817.6,1817.4,1.10061]
[1743640501576,6.81852,1817.7,1817.5,1.10059]
[1743640501774,4.278,1817.7,1817.3,0.7024]
[1743640501983,1.10051,1817.7,1817.5,1.10058]
[1743640502380,4.30824,1817.8,1817.6,1.10055]
[1743640502583,4.6194,1817.8,1817.3,0.7024]
[1743640502882,1.10057,1817.6,1817.4,2.50502]
[1743640503586,1.10053,1817.7,1817.4,2.50502]
[1743640503781,2.51213,1817.7,1817.4,2.50502]
[1743640503981,3.2078,1817.8,1817.6,1.10053]
[1743640504281,4.278,1817.9,1817.5,0.7144]
[1743640504282,1.10055,1817.6,1817.5,0.7144]
[1743640504581,1.10055,1817.6,1817.3,5.01089]
[1743640504582,1.10061,1817.5,1817.4,1.4044]
[1743640504779,2.51221,1817.5,1817.4,1.4044]
[1743640505185,3.2078,1817.8,1817.4,2.50506]
[1743640505386,4.30824,1817.8,1817.4,1.4044]
[1743640505587,1.10051,1817.7,1817.5,1.10058]
[1743640505782,4.278,1817.9,1817.6,1.4841]
[1743640505977,3.2078,1817.8,1817.7,0.7144]
[1743640506181,4.30822,1817.8,1817.7,0.7144]
[1743640506382,4.30813,1818.0,1817.7,0.7144]
[1743640506580,4.30813,1818.0,1817.7,1.81485]
[1743640506581,3.2078,1818.0,1817.7,1.81485]
[1743640506781,3.2078,1818.0,1817.7,0.7144]
[1743640506985,0.00824992,1818.1,1817.7,3.9222]
[1743640507280,0.00824992,1818.1,1818.0,1.1003]
[1743640508085,1.10852992,1818.1,1817.8,4.99918]
[1743640508384,1.10036,1817.9,1817.8,0.691]
[1743640508793,1.10042,1817.8,1817.7,0.7144]
[1743640510092,2.62451,1817.9,1817.7,1.81488]
[1743640510292,4.28624992,1818.1,1817.7,3.9222]